[Event "Titled Tuesday Blitz April 25 Early 2023"]
[White "ArrestingPieces"]
[Black "Saveliev, Alexei"]
[BlackFideId "24128546"]
[WhiteElo "2330"]
[BlackElo "2271"]
[Result "0-1"]
[Round "01"]
[TimeControl "180+2"]
[Date "2023.04.25"]
[WhiteClock "0:00:13"]
[BlackClock "0:00:47"]

1. e4 {[%clk 0:03:00]}  g6 {[%clk 0:02:53]} 2. d4 {[%clk 0:03:00]}  Bg7 {[%clk 0:02:54]} 3. Nf3 {[%clk 0:03:00]}  d6 {[%clk 0:02:54]} 4. Nc3 {[%clk 0:02:58]}  Nc6 {[%clk 0:02:52]} 5. Be3 {[%clk 0:02:52]}  Nf6 {[%clk 0:02:50]} 6. h3 {[%clk 0:02:47]}  O-O {[%clk 0:02:50]} 7. Be2 {[%clk 0:02:46]}  Nd7 {[%clk 0:02:50]} 8. d5 {[%clk 0:02:46]}  Nce5 {[%clk 0:02:50]} 9. Nxe5 {[%clk 0:02:46]}  Nxe5 {[%clk 0:02:50]} 10. f4 {[%clk 0:02:46]}  Nd7 {[%clk 0:02:48]} 11. O-O {[%clk 0:02:45]}  c6 {[%clk 0:02:46]} 12. Bd4 {[%clk 0:02:43]}  Bxd4+ {[%clk 0:02:42]} 13. Qxd4 {[%clk 0:02:43]}  Qb6 {[%clk 0:02:42]} 14. Qxb6 {[%clk 0:02:37]}  Nxb6 {[%clk 0:02:43]} 15. Rad1 {[%clk 0:02:30]}  Bd7 {[%clk 0:02:32]} 16. Rfe1 {[%clk 0:02:17]}  Rac8 {[%clk 0:02:28]} 17. dxc6 {[%clk 0:02:09]}  Bxc6 {[%clk 0:02:26]} 18. Kf2 {[%clk 0:01:53]}  Kg7 {[%clk 0:02:20]} 19. Ke3 {[%clk 0:01:45]}  Rc7 {[%clk 0:02:20]} 20. Bf3 {[%clk 0:01:45]}  Nc4+ {[%clk 0:02:17]} 21. Kf2 {[%clk 0:01:38]}  Nxb2 {[%clk 0:02:16]} 22. Rb1 {[%clk 0:01:35]}  Nc4 {[%clk 0:02:16]} 23. Rb3 {[%clk 0:01:09]}  Nd2 {[%clk 0:02:06]} 24. Ra3 {[%clk 0:01:04]}  Nxf3 {[%clk 0:02:06]} 25. Kxf3 {[%clk 0:00:59]}  a6 {[%clk 0:02:05]} 26. Ke3 {[%clk 0:00:56]}  Rfc8 {[%clk 0:02:05]} 27. Rb1 {[%clk 0:00:50]}  e6 {[%clk 0:01:52]} 28. g4 {[%clk 0:00:45]}  d5 {[%clk 0:01:48]} 29. exd5 {[%clk 0:00:41]}  Bxd5 {[%clk 0:01:49]} 30. Nxd5 {[%clk 0:00:28]}  exd5 {[%clk 0:01:49]} 31. Rd3 {[%clk 0:00:29]}  b5 {[%clk 0:01:39]} 32. Rxd5 {[%clk 0:00:27]}  Rxc2 {[%clk 0:01:40]} 33. a4 {[%clk 0:00:27]}  R8c3+ {[%clk 0:01:40]} 34. Ke4 {[%clk 0:00:27]}  Rc4+ {[%clk 0:01:40]} 35. Ke5 {[%clk 0:00:25]}  Re2+ {[%clk 0:01:34]} 36. Kd6 {[%clk 0:00:25]}  Rxa4 {[%clk 0:01:31]} 37. f5 {[%clk 0:00:25]}  Kf6 {[%clk 0:01:20]} 38. fxg6 {[%clk 0:00:25]}  hxg6 {[%clk 0:01:18]} 39. Rf1+ {[%clk 0:00:25]}  Kg7 {[%clk 0:01:18]} 40. Kc6 {[%clk 0:00:23]}  Rc4+ {[%clk 0:01:18]} 41. Kb6 {[%clk 0:00:23]}  Re6+ {[%clk 0:01:18]} 42. Kb7 {[%clk 0:00:22]}  Rcc6 {[%clk 0:01:10]} 43. g5 {[%clk 0:00:20]}  Rcd6 {[%clk 0:01:06]} 44. Rc5 {[%clk 0:00:20]}  Rd7+ {[%clk 0:01:06]} 45. Kc8 {[%clk 0:00:20]}  Ra7 {[%clk 0:01:04]} 46. Rc7 {[%clk 0:00:18]}  Re8+ {[%clk 0:00:53]} 47. Kd7 {[%clk 0:00:17]}  Rxc7+ {[%clk 0:00:53]} 48. Kxc7 {[%clk 0:00:17]}  Re3 {[%clk 0:00:53]} 49. Kb6 {[%clk 0:00:16]}  Rxh3 {[%clk 0:00:52]} 50. Kxa6 {[%clk 0:00:16]}  b4 {[%clk 0:00:52]} 51. Rg1 {[%clk 0:00:14]}  b3 {[%clk 0:00:50]} 52. Kb5 {[%clk 0:00:14]}  b2 {[%clk 0:00:51]} 53. Kb4 {[%clk 0:00:14]}  Kf8 {[%clk 0:00:48]} 54. Rb1 {[%clk 0:00:12]}  Rh2 {[%clk 0:00:45]} 55. Ka3 {[%clk 0:00:12]}  Rg2 {[%clk 0:00:45]} 56. Rxb2 {[%clk 0:00:10]}  Rxb2 {[%clk 0:00:44]} 57. Kxb2 {[%clk 0:00:11]}  Ke7 {[%clk 0:00:45]} 58. Kc3 {[%clk 0:00:11]}  Ke6 {[%clk 0:00:45]} 59. Kd3 {[%clk 0:00:12]}  Kf5 {[%clk 0:00:46]} 60. Ke3 {[%clk 0:00:13]}  Kxg5 {[%clk 0:00:47]} 0-1


[Site "https://www.chess.com"]

[Event "Titled Tuesday Blitz April 25 Early 2023"]
[White "Atanasov, Anthony"]
[Black "Manon-og, Ramon Jr."]
[WhiteFideId "2623897"]
[BlackFideId "5200776"]
[WhiteElo "2326"]
[BlackElo "2330"]
[Result "1-0"]
[Round "01"]
[TimeControl "180+2"]
[Date "2023.04.25"]
[WhiteClock "0:01:38"]
[BlackClock "0:00:01"]

1. d4 {[%clk 0:03:00]}  Nf6 {[%clk 0:02:58]} 2. Nf3 {[%clk 0:02:58]}  g6 {[%clk 0:02:58]} 3. c4 {[%clk 0:02:54]}  d5 {[%clk 0:02:58]} 4. cxd5 {[%clk 0:02:54]}  Nxd5 {[%clk 0:02:59]} 5. e4 {[%clk 0:02:54]}  Nb6 {[%clk 0:02:57]} 6. h4 {[%clk 0:02:50]}  h5 {[%clk 0:02:56]} 7. Nc3 {[%clk 0:02:50]}  Bg7 {[%clk 0:02:57]} 8. Bb5+ {[%clk 0:02:48]}  c6 {[%clk 0:02:56]} 9. Be2 {[%clk 0:02:47]}  Bg4 {[%clk 0:02:56]} 10. Be3 {[%clk 0:02:47]}  N8d7 {[%clk 0:02:54]} 11. Qb3 {[%clk 0:02:45]}  Rc8 {[%clk 0:02:51]} 12. Ng5 {[%clk 0:02:44]}  e6 {[%clk 0:02:43]} 13. Bxg4 {[%clk 0:02:40]}  hxg4 {[%clk 0:02:44]} 14. Nxe6 {[%clk 0:02:41]}  fxe6 {[%clk 0:02:34]} 15. Qxe6+ {[%clk 0:02:42]}  Qe7 {[%clk 0:02:35]} 16. Qxg6+ {[%clk 0:02:41]}  Qf7 {[%clk 0:02:35]} 17. Qxg4 {[%clk 0:02:41]}  Nc4 {[%clk 0:02:36]} 18. O-O-O {[%clk 0:02:40]}  b5 {[%clk 0:02:26]} 19. e5 {[%clk 0:02:39]}  Qe7 {[%clk 0:02:10]} 20. h5 {[%clk 0:02:28]}  Nxe3 {[%clk 0:01:58]} 21. fxe3 {[%clk 0:02:26]}  Nb6 {[%clk 0:01:59]} 22. Ne4 {[%clk 0:02:22]}  Kd8 {[%clk 0:01:48]} 23. Nd6 {[%clk 0:02:15]}  Rc7 {[%clk 0:01:48]} 24. Rdf1 {[%clk 0:02:12]}  Rf8 {[%clk 0:01:25]} 25. h6 {[%clk 0:02:05]}  Rxf1+ {[%clk 0:01:20]} 26. Rxf1 {[%clk 0:02:06]}  Bxh6 {[%clk 0:01:20]} 27. Qg8+ {[%clk 0:02:06]}  Kd7 {[%clk 0:01:19]} 28. Rf7 {[%clk 0:02:01]}  Bxe3+ {[%clk 0:01:19]} 29. Kc2 {[%clk 0:02:01]}  Nd5 {[%clk 0:01:08]} 30. Rxe7+ {[%clk 0:01:50]}  Nxe7 {[%clk 0:01:06]} 31. e6+ {[%clk 0:01:50]}  Kxd6 {[%clk 0:01:04]} 32. Qg3+ {[%clk 0:01:51]}  Kxe6 {[%clk 0:00:59]} 33. Qxc7 {[%clk 0:01:51]}  Bxd4 {[%clk 0:00:59]} 34. g4 {[%clk 0:01:50]}  b4 {[%clk 0:00:50]} 35. g5 {[%clk 0:01:49]}  a6 {[%clk 0:00:26]} 36. g6 {[%clk 0:01:49]}  Bf6 {[%clk 0:00:24]} 37. Qb7 {[%clk 0:01:46]}  a5 {[%clk 0:00:23]} 38. Qb6 {[%clk 0:01:46]}  Kd6 {[%clk 0:00:16]} 39. Qf2 {[%clk 0:01:45]}  Be5 {[%clk 0:00:13]} 40. Qf7 {[%clk 0:01:44]}  c5 {[%clk 0:00:10]} 41. g7 {[%clk 0:01:44]}  Bxg7 {[%clk 0:00:11]} 42. Qxg7 {[%clk 0:01:44]}  Nc6 {[%clk 0:00:10]} 43. Qf6+ {[%clk 0:01:45]}  Kd5 {[%clk 0:00:10]} 44. Qf3+ {[%clk 0:01:45]}  Kd6 {[%clk 0:00:09]} 45. Qf8+ {[%clk 0:01:46]}  Kd5 {[%clk 0:00:10]} 46. Qa8 {[%clk 0:01:46]}  Kd6 {[%clk 0:00:09]} 47. Kb3 {[%clk 0:01:45]}  Kd5 {[%clk 0:00:06]} 48. a4 {[%clk 0:01:44]}  c4+ {[%clk 0:00:05]} 49. Kc2 {[%clk 0:01:44]}  Kc5 {[%clk 0:00:04]} 50. Qa6 {[%clk 0:01:41]}  Nd4+ {[%clk 0:00:04]} 51. Kd1 {[%clk 0:01:40]}  Nb3 {[%clk 0:00:05]} 52. Qf6 {[%clk 0:01:38]}  Kd5 {[%clk 0:00:03]} 53. Kc2 {[%clk 0:01:37]}  Nd4+ {[%clk 0:00:03]} 54. Kd2 {[%clk 0:01:38]}  Nb3+ {[%clk 0:00:03]} 55. Ke3 {[%clk 0:01:38]}  Kc5 {[%clk 0:00:02]} 56. Qe5+ {[%clk 0:01:38]}  Kc6 {[%clk 0:00:02]} 57. Qb5+ {[%clk 0:01:39]}  Kd6 {[%clk 0:00:02]} 58. Qxc4 {[%clk 0:01:38]}  Nc5 {[%clk 0:00:02]} 59. Qb5 {[%clk 0:01:38]}  Kd5 {[%clk 0:00:02]} 60. b3 {[%clk 0:01:37]}  Kd6 {[%clk 0:00:01]} 61. Qb6+ {[%clk 0:01:37]}  Kd5 {[%clk 0:00:01]} 62. Qxa5 {[%clk 0:01:38]} 1-0


[Site "https://www.chess.com"]

[Event "Titled Tuesday Blitz April 25 Early 2023"]
[White "Williams, Simon K"]
[Black "TigranHH"]
[WhiteFideId "404454"]
[WhiteElo "2468"]
[BlackElo "2326"]
[Result "1-0"]
[Round "01"]
[TimeControl "180+2"]
[Date "2023.04.25"]
[WhiteClock "0:00:55"]
[BlackClock "0:00:21"]

1. d4 {[%clk 0:02:57]}  Nf6 {[%clk 0:02:03]} 2. c4 {[%clk 0:02:50]}  e6 {[%clk 0:02:01]} 3. Nf3 {[%clk 0:02:49]}  d5 {[%clk 0:02:01]} 4. Nc3 {[%clk 0:02:49]}  dxc4 {[%clk 0:01:58]} 5. e4 {[%clk 0:02:45]}  b5 {[%clk 0:01:58]} 6. e5 {[%clk 0:02:44]}  Nd5 {[%clk 0:01:59]} 7. Nxb5 {[%clk 0:02:43]}  Nb6 {[%clk 0:01:56]} 8. Be2 {[%clk 0:02:38]}  Nc6 {[%clk 0:01:54]} 9. O-O {[%clk 0:02:37]}  Bb7 {[%clk 0:01:52]} 10. Qd2 {[%clk 0:02:35]}  Be7 {[%clk 0:01:43]} 11. Qf4 {[%clk 0:02:34]}  Qd7 {[%clk 0:01:39]} 12. a4 {[%clk 0:02:27]}  a5 {[%clk 0:01:30]} 13. Qg4 {[%clk 0:02:24]}  O-O-O {[%clk 0:01:19]} 14. Be3 {[%clk 0:02:10]}  h5 {[%clk 0:01:16]} 15. Qxg7 {[%clk 0:01:44]}  Rdg8 {[%clk 0:01:15]} 16. Qxf7 {[%clk 0:01:44]}  Nd8 {[%clk 0:01:15]} 17. Qf4 {[%clk 0:01:27]}  Rg4 {[%clk 0:00:59]} 18. Rac1 {[%clk 0:01:14]}  Rxf4 {[%clk 0:00:51]} 19. Bxf4 {[%clk 0:01:14]}  Rf8 {[%clk 0:00:46]} 20. Bh6 {[%clk 0:01:10]}  Rxf3 {[%clk 0:00:21]} 21. gxf3 {[%clk 0:00:55]}  Qxd4 {[%clk 0:00:21]} 22. Nxd4 {[%clk 0:00:55]} 1-0


[Site "https://www.chess.com"]

[Event "Titled Tuesday Blitz April 25 Early 2023"]
[White "Ibadov, Dashgyn"]
[Black "Sohier, Julien"]
[WhiteFideId "24107514"]
[BlackFideId "645346"]
[WhiteElo "2208"]
[BlackElo "2209"]
[Result "1-0"]
[Round "01"]
[TimeControl "180+2"]
[Date "2023.04.25"]
[WhiteClock "0:00:15"]
[BlackClock "0:00:14"]

1. e4 {[%clk 0:03:00]}  e5 {[%clk 0:02:57]} 2. Nf3 {[%clk 0:02:59]}  Nc6 {[%clk 0:02:58]} 3. d4 {[%clk 0:02:58]}  exd4 {[%clk 0:02:57]} 4. Nxd4 {[%clk 0:02:59]}  Nf6 {[%clk 0:02:56]} 5. Nxc6 {[%clk 0:02:58]}  bxc6 {[%clk 0:02:57]} 6. e5 {[%clk 0:02:59]}  Qe7 {[%clk 0:02:57]} 7. Qe2 {[%clk 0:03:00]}  Nd5 {[%clk 0:02:57]} 8. c4 {[%clk 0:03:00]}  Ba6 {[%clk 0:02:58]} 9. b3 {[%clk 0:03:01]}  g6 {[%clk 0:02:58]} 10. g3 {[%clk 0:03:01]}  d6 {[%clk 0:02:50]} 11. Bb2 {[%clk 0:02:59]}  Bg7 {[%clk 0:02:47]} 12. Bg2 {[%clk 0:02:51]}  O-O {[%clk 0:02:40]} 13. O-O {[%clk 0:02:50]}  Rae8 {[%clk 0:02:31]} 14. Qd2 {[%clk 0:02:45]}  Bxe5 {[%clk 0:02:16]} 15. cxd5 {[%clk 0:02:39]}  Bxf1 {[%clk 0:02:14]} 16. Bxf1 {[%clk 0:02:34]}  Bxb2 {[%clk 0:02:11]} 17. Qxb2 {[%clk 0:02:35]}  cxd5 {[%clk 0:02:01]} 18. Nc3 {[%clk 0:02:35]}  c6 {[%clk 0:02:01]} 19. Rc1 {[%clk 0:02:18]}  Qe5 {[%clk 0:01:58]} 20. Qd2 {[%clk 0:02:16]}  d4 {[%clk 0:01:50]} 21. Ne2 {[%clk 0:02:02]}  c5 {[%clk 0:01:49]} 22. Nf4 {[%clk 0:02:00]}  Kg7 {[%clk 0:01:41]} 23. b4 {[%clk 0:01:40]}  cxb4 {[%clk 0:01:21]} 24. Qxb4 {[%clk 0:01:38]}  Rc8 {[%clk 0:01:20]} 25. Rd1 {[%clk 0:01:34]}  Rc2 {[%clk 0:01:14]} 26. a4 {[%clk 0:01:05]}  Rfc8 {[%clk 0:00:54]} 27. Qxd4 {[%clk 0:01:04]}  Qxd4 {[%clk 0:00:54]} 28. Rxd4 {[%clk 0:01:05]}  Ra2 {[%clk 0:00:54]} 29. Bd3 {[%clk 0:00:32]}  Rd2 {[%clk 0:00:47]} 30. Rxd6 {[%clk 0:00:25]}  Rc1+ {[%clk 0:00:41]} 31. Kg2 {[%clk 0:00:25]}  Rcd1 {[%clk 0:00:42]} 32. Ra6 {[%clk 0:00:20]}  Rxd3 {[%clk 0:00:38]} 33. Nxd3 {[%clk 0:00:20]}  Rxd3 {[%clk 0:00:39]} 34. Rxa7 {[%clk 0:00:21]}  h5 {[%clk 0:00:39]} 35. a5 {[%clk 0:00:20]}  Ra3 {[%clk 0:00:39]} 36. a6 {[%clk 0:00:20]}  g5 {[%clk 0:00:36]} 37. Ra8 {[%clk 0:00:18]}  g4 {[%clk 0:00:32]} 38. Kf1 {[%clk 0:00:18]}  f5 {[%clk 0:00:28]} 39. Ke2 {[%clk 0:00:17]}  Kg6 {[%clk 0:00:24]} 40. a7 {[%clk 0:00:14]}  Kg7 {[%clk 0:00:24]} 41. Kd2 {[%clk 0:00:14]}  Ra1 {[%clk 0:00:16]} 42. Ke3 {[%clk 0:00:14]}  Ra4 {[%clk 0:00:17]} 43. Kd3 {[%clk 0:00:14]}  Kh7 {[%clk 0:00:17]} 44. Kc3 {[%clk 0:00:14]}  Kg7 {[%clk 0:00:17]} 45. Kb3 {[%clk 0:00:15]}  Ra1 {[%clk 0:00:17]} 46. Kc4 {[%clk 0:00:15]}  Ra5 {[%clk 0:00:14]} 47. Kb4 {[%clk 0:00:15]}  Ra1 {[%clk 0:00:14]} 48. Kc5 {[%clk 0:00:15]}  Ra5+ {[%clk 0:00:14]} 49. Kb6 {[%clk 0:00:15]}  Ra1 {[%clk 0:00:14]} 50. Rb8 {[%clk 0:00:15]} 1-0


[Site "https://www.chess.com"]

[Event "Titled Tuesday Blitz April 25 Early 2023"]
[White "Mihajlovskij"]
[Black "Maurizzi, Marc`Andria"]
[BlackFideId "36083534"]
[WhiteElo "2319"]
[BlackElo "2421"]
[Result "0-1"]
[Round "01"]
[TimeControl "180+2"]
[Date "2023.04.25"]
[WhiteClock "0:01:36"]
[BlackClock "0:01:45"]

1. e4 {[%clk 0:02:59]}  c5 {[%clk 0:02:59]} 2. Nf3 {[%clk 0:02:59]}  d6 {[%clk 0:02:59]} 3. d4 {[%clk 0:02:59]}  cxd4 {[%clk 0:03:00]} 4. Qxd4 {[%clk 0:03:00]}  Nf6 {[%clk 0:03:01]} 5. Bg5 {[%clk 0:02:59]}  Nc6 {[%clk 0:02:59]} 6. Bb5 {[%clk 0:02:58]}  Bd7 {[%clk 0:03:00]} 7. Bxc6 {[%clk 0:02:58]}  Bxc6 {[%clk 0:03:00]} 8. Nc3 {[%clk 0:02:58]}  Qa5 {[%clk 0:02:58]} 9. O-O-O {[%clk 0:02:58]}  Nd7 {[%clk 0:02:49]} 10. Rhe1 {[%clk 0:02:53]}  e6 {[%clk 0:02:45]} 11. Kb1 {[%clk 0:02:51]}  Qb6 {[%clk 0:02:43]} 12. Qd2 {[%clk 0:02:48]}  Rc8 {[%clk 0:02:40]} 13. Be3 {[%clk 0:02:47]}  Qa6 {[%clk 0:02:38]} 14. Bf4 {[%clk 0:02:47]}  Nb6 {[%clk 0:02:34]} 15. Qe2 {[%clk 0:02:38]}  Nc4 {[%clk 0:02:32]} 16. b3 {[%clk 0:02:35]}  Na3+ {[%clk 0:02:22]} 17. Kb2 {[%clk 0:02:35]}  Qa5 {[%clk 0:02:18]} 18. Bd2 {[%clk 0:02:25]}  Nxc2 {[%clk 0:01:54]} 19. Kxc2 {[%clk 0:02:22]}  Bb5 {[%clk 0:01:53]} 20. Kb2 {[%clk 0:01:49]}  Bxe2 {[%clk 0:01:51]} 21. Nxe2 {[%clk 0:01:50]}  Qd8 {[%clk 0:01:49]} 22. Bf4 {[%clk 0:01:47]}  Be7 {[%clk 0:01:48]} 23. e5 {[%clk 0:01:47]}  d5 {[%clk 0:01:47]} 24. Ned4 {[%clk 0:01:47]}  O-O {[%clk 0:01:47]} 25. g3 {[%clk 0:01:46]}  Qa5 {[%clk 0:01:47]} 26. Re3 {[%clk 0:01:45]}  Ba3+ {[%clk 0:01:47]} 27. Kb1 {[%clk 0:01:44]}  Rc7 {[%clk 0:01:47]} 28. Nc2 {[%clk 0:01:43]}  Rfc8 {[%clk 0:01:47]} 29. Re2 {[%clk 0:01:41]}  h6 {[%clk 0:01:46]} 30. Bd2 {[%clk 0:01:39]}  Qa6 {[%clk 0:01:46]} 31. Be3 {[%clk 0:01:36]}  Qxe2 {[%clk 0:01:45]} 0-1


[Site "https://www.chess.com"]

[Event "Titled Tuesday Blitz April 25 Early 2023"]
[White "Nikologorskiy, Konstantin"]
[Black "Harris, Ian"]
[WhiteFideId "24111708"]
[BlackFideId "2020092"]
[WhiteElo "2293"]
[BlackElo "2315"]
[Result "1-0"]
[Round "01"]
[TimeControl "180+2"]
[Date "2023.04.25"]
[WhiteClock "0:00:11"]
[BlackClock "0:00:05"]

1. d4 {[%clk 0:02:58]}  d5 {[%clk 0:02:57]} 2. c4 {[%clk 0:02:56]}  e6 {[%clk 0:02:57]} 3. Nf3 {[%clk 0:02:56]}  Nf6 {[%clk 0:02:57]} 4. g3 {[%clk 0:02:56]}  Bb4+ {[%clk 0:02:55]} 5. Bd2 {[%clk 0:02:56]}  Be7 {[%clk 0:02:54]} 6. Bg2 {[%clk 0:02:56]}  O-O {[%clk 0:02:54]} 7. O-O {[%clk 0:02:56]}  c6 {[%clk 0:02:52]} 8. Qc2 {[%clk 0:02:56]}  Nbd7 {[%clk 0:02:51]} 9. Rc1 {[%clk 0:02:56]}  b6 {[%clk 0:02:51]} 10. Bf4 {[%clk 0:02:55]}  Bb7 {[%clk 0:02:51]} 11. Nc3 {[%clk 0:02:49]}  Rc8 {[%clk 0:02:41]} 12. e4 {[%clk 0:02:38]}  dxc4 {[%clk 0:02:35]} 13. h4 {[%clk 0:02:19]}  b5 {[%clk 0:02:20]} 14. e5 {[%clk 0:02:19]}  Nd5 {[%clk 0:02:17]} 15. Bg5 {[%clk 0:02:19]}  h6 {[%clk 0:02:05]} 16. Bxe7 {[%clk 0:02:08]}  Qxe7 {[%clk 0:02:04]} 17. Ne4 {[%clk 0:02:09]}  c5 {[%clk 0:01:39]} 18. Nd6 {[%clk 0:02:03]}  Rb8 {[%clk 0:01:04]} 19. Nxb5 {[%clk 0:01:52]}  Nb4 {[%clk 0:00:41]} 20. Qxc4 {[%clk 0:01:45]}  Bd5 {[%clk 0:00:17]} 21. Qe2 {[%clk 0:01:37]}  c4 {[%clk 0:00:16]} 22. Nd6 {[%clk 0:01:29]}  Nd3 {[%clk 0:00:16]} 23. Rc2 {[%clk 0:01:28]}  Nb6 {[%clk 0:00:16]} 24. b3 {[%clk 0:01:18]}  Nb4 {[%clk 0:00:14]} 25. Rc3 {[%clk 0:01:14]}  cxb3 {[%clk 0:00:14]} 26. axb3 {[%clk 0:01:15]}  Rfd8 {[%clk 0:00:13]} 27. Rac1 {[%clk 0:01:13]}  Rxd6 {[%clk 0:00:12]} 28. exd6 {[%clk 0:01:14]}  Qxd6 {[%clk 0:00:12]} 29. Rc7 {[%clk 0:01:07]}  a5 {[%clk 0:00:10]} 30. Ne5 {[%clk 0:00:35]}  f6 {[%clk 0:00:10]} 31. Nf7 {[%clk 0:00:33]}  Qf8 {[%clk 0:00:09]} 32. Qg4 {[%clk 0:00:31]}  Bxg2 {[%clk 0:00:08]} 33. Kxg2 {[%clk 0:00:24]}  N6d5 {[%clk 0:00:09]} 34. Qxe6 {[%clk 0:00:14]}  Kh7 {[%clk 0:00:04]} 35. Qf5+ {[%clk 0:00:12]}  Kg8 {[%clk 0:00:05]} 36. Nxh6+ {[%clk 0:00:11]}  gxh6 {[%clk 0:00:05]} 37. Qh7# {[%clk 0:00:11]} 1-0


[Site "https://www.chess.com"]

[Event "Titled Tuesday Blitz April 25 Early 2023"]
[White "Allahverdiyeva, Ayan"]
[Black "Kozin, Yuri"]
[WhiteFideId "13412590"]
[BlackFideId "4129920"]
[WhiteElo "1980"]
[BlackElo "2616"]
[Result "0-1"]
[Round "01"]
[TimeControl "180+2"]
[Date "2023.04.25"]
[WhiteClock "0:00:11"]
[BlackClock "0:01:36"]

1. e4 {[%clk 0:02:59]}  c5 {[%clk 0:02:59]} 2. Nf3 {[%clk 0:02:52]}  e6 {[%clk 0:03:00]} 3. d4 {[%clk 0:02:52]}  cxd4 {[%clk 0:03:01]} 4. Nxd4 {[%clk 0:02:52]}  Nf6 {[%clk 0:03:01]} 5. Nc3 {[%clk 0:02:51]}  d6 {[%clk 0:03:01]} 6. g4 {[%clk 0:02:51]}  h6 {[%clk 0:03:02]} 7. Rg1 {[%clk 0:02:49]}  Nc6 {[%clk 0:03:02]} 8. Be3 {[%clk 0:02:49]}  e5 {[%clk 0:02:58]} 9. Nb3 {[%clk 0:01:54]}  Be6 {[%clk 0:02:56]} 10. Nd5 {[%clk 0:01:33]}  Rc8 {[%clk 0:02:35]} 11. Nxf6+ {[%clk 0:01:02]}  Qxf6 {[%clk 0:02:30]} 12. g5 {[%clk 0:01:02]}  hxg5 {[%clk 0:02:17]} 13. Bxg5 {[%clk 0:01:02]}  Qg6 {[%clk 0:02:17]} 14. f3 {[%clk 0:00:20]}  Rxh2 {[%clk 0:02:06]} 15. c3 {[%clk 0:00:19]}  Rxb2 {[%clk 0:01:53]} 16. Be2 {[%clk 0:00:11]}  Be7 {[%clk 0:01:49]} 17. Be3 {[%clk 0:00:11]}  Bh4+ {[%clk 0:01:36]} 0-1


[Site "https://www.chess.com"]

[Event "Titled Tuesday Blitz April 25 Early 2023"]
[White "Mamedov, Edgar"]
[Black "Prudnykova, Olga"]
[WhiteFideId "13739980"]
[BlackFideId "14121093"]
[WhiteElo "2330"]
[BlackElo "2113"]
[Result "1-0"]
[Round "01"]
[TimeControl "180+2"]
[Date "2023.04.25"]
[WhiteClock "0:00:57"]
[BlackClock "0:00:02"]

1. e4 {[%clk 0:03:00]}  c5 {[%clk 0:02:58]} 2. Nf3 {[%clk 0:03:00]}  Nf6 {[%clk 0:02:58]} 3. Nc3 {[%clk 0:03:00]}  e6 {[%clk 0:02:57]} 4. e5 {[%clk 0:02:59]}  Nd5 {[%clk 0:02:56]} 5. Nxd5 {[%clk 0:02:59]}  exd5 {[%clk 0:02:57]} 6. d4 {[%clk 0:02:59]}  Nc6 {[%clk 0:02:57]} 7. dxc5 {[%clk 0:02:56]}  Bxc5 {[%clk 0:02:57]} 8. Qxd5 {[%clk 0:02:57]}  Qb6 {[%clk 0:02:57]} 9. Qd2 {[%clk 0:02:52]}  d6 {[%clk 0:02:16]} 10. Bd3 {[%clk 0:02:27]}  dxe5 {[%clk 0:02:14]} 11. O-O {[%clk 0:02:27]}  O-O {[%clk 0:02:10]} 12. Qg5 {[%clk 0:02:25]}  Be7 {[%clk 0:01:58]} 13. Qh5 {[%clk 0:02:24]}  g6 {[%clk 0:01:57]} 14. Qh6 {[%clk 0:02:22]}  Nd4 {[%clk 0:01:24]} 15. Nxe5 {[%clk 0:02:14]}  Bf6 {[%clk 0:01:18]} 16. Nc4 {[%clk 0:02:12]}  Qc5 {[%clk 0:01:08]} 17. Qf4 {[%clk 0:02:06]}  Bg7 {[%clk 0:00:58]} 18. Qd6 {[%clk 0:02:04]}  Qh5 {[%clk 0:00:50]} 19. Bf4 {[%clk 0:02:00]}  Bf5 {[%clk 0:00:47]} 20. Be5 {[%clk 0:01:57]}  Rad8 {[%clk 0:00:31]} 21. Qc5 {[%clk 0:01:50]}  b6 {[%clk 0:00:29]} 22. Qc7 {[%clk 0:01:42]}  Rc8 {[%clk 0:00:26]} 23. Qxa7 {[%clk 0:01:37]}  Nxc2 {[%clk 0:00:19]} 24. Bxc2 {[%clk 0:01:28]}  Bxe5 {[%clk 0:00:15]} 25. Nxe5 {[%clk 0:01:23]}  Rxc2 {[%clk 0:00:13]} 26. Qxb6 {[%clk 0:01:22]}  Qg5 {[%clk 0:00:10]} 27. Nf3 {[%clk 0:01:19]}  Qh5 {[%clk 0:00:08]} 28. Nd4 {[%clk 0:01:14]}  Rd2 {[%clk 0:00:07]} 29. Nxf5 {[%clk 0:01:14]}  Qxf5 {[%clk 0:00:08]} 30. a4 {[%clk 0:01:13]}  Rc8 {[%clk 0:00:07]} 31. a5 {[%clk 0:01:08]}  Rcc2 {[%clk 0:00:06]} 32. b4 {[%clk 0:01:03]}  Ra2 {[%clk 0:00:04]} 33. Rxa2 {[%clk 0:01:02]}  Rxa2 {[%clk 0:00:05]} 34. Qd8+ {[%clk 0:01:00]}  Kg7 {[%clk 0:00:04]} 35. Qd4+ {[%clk 0:01:00]}  Kg8 {[%clk 0:00:04]} 36. Rc1 {[%clk 0:00:58]}  f6 {[%clk 0:00:02]} 37. Qc4+ {[%clk 0:00:57]} 1-0


[Site "https://www.chess.com"]

[Event "Titled Tuesday Blitz April 25 Early 2023"]
[White "Koellner, Ruben Gideon"]
[Black "Onslow, Alfie"]
[WhiteFideId "12993093"]
[BlackFideId "436976"]
[WhiteElo "2314"]
[BlackElo "2114"]
[Result "1-0"]
[Round "01"]
[TimeControl "180+2"]
[Date "2023.04.25"]
[WhiteClock "0:01:51"]
[BlackClock "0:01:39"]

1. d4 {[%clk 0:03:00]}  Nf6 {[%clk 0:02:58]} 2. Nf3 {[%clk 0:02:59]}  c5 {[%clk 0:02:58]} 3. e3 {[%clk 0:02:59]}  cxd4 {[%clk 0:02:58]} 4. exd4 {[%clk 0:03:00]}  b6 {[%clk 0:02:57]} 5. c3 {[%clk 0:03:00]}  Bb7 {[%clk 0:02:58]} 6. Bd3 {[%clk 0:03:01]}  e6 {[%clk 0:02:58]} 7. O-O {[%clk 0:03:01]}  Be7 {[%clk 0:02:58]} 8. Nbd2 {[%clk 0:03:01]}  O-O {[%clk 0:02:59]} 9. Re1 {[%clk 0:03:02]}  d6 {[%clk 0:02:59]} 10. Qe2 {[%clk 0:03:01]}  Nbd7 {[%clk 0:02:59]} 11. Ne4 {[%clk 0:03:01]}  Nxe4 {[%clk 0:02:58]} 12. Bxe4 {[%clk 0:03:02]}  Bxe4 {[%clk 0:02:58]} 13. Qxe4 {[%clk 0:03:03]}  Nf6 {[%clk 0:02:59]} 14. Qe2 {[%clk 0:03:04]}  Qc7 {[%clk 0:02:56]} 15. Bg5 {[%clk 0:03:04]}  h6 {[%clk 0:02:56]} 16. Bxf6 {[%clk 0:03:04]}  Bxf6 {[%clk 0:02:57]} 17. a4 {[%clk 0:03:04]}  Rfc8 {[%clk 0:02:45]} 18. Red1 {[%clk 0:02:44]}  Qc4 {[%clk 0:02:41]} 19. Qxc4 {[%clk 0:02:41]}  Rxc4 {[%clk 0:02:42]} 20. Nd2 {[%clk 0:02:38]}  Rc7 {[%clk 0:02:37]} 21. d5 {[%clk 0:02:33]}  e5 {[%clk 0:02:29]} 22. Ne4 {[%clk 0:02:20]}  Be7 {[%clk 0:02:29]} 23. g4 {[%clk 0:02:20]}  g6 {[%clk 0:02:29]} 24. Rd3 {[%clk 0:02:13]}  f5 {[%clk 0:02:26]} 25. gxf5 {[%clk 0:02:13]}  gxf5 {[%clk 0:02:27]} 26. Ng3 {[%clk 0:02:14]}  Rf8 {[%clk 0:02:22]} 27. Rf3 {[%clk 0:02:10]}  f4 {[%clk 0:02:21]} 28. Ne4 {[%clk 0:02:07]}  Rc4 {[%clk 0:02:21]} 29. Nd2 {[%clk 0:02:05]}  Rc7 {[%clk 0:02:12]} 30. Rh3 {[%clk 0:02:01]}  Bg5 {[%clk 0:02:10]} 31. Ne4 {[%clk 0:01:54]}  Rc4 {[%clk 0:01:39]} 32. Nxd6 {[%clk 0:01:51]}  Rd8 {[%clk 0:01:39]} 33. Nxc4 {[%clk 0:01:51]} 1-0


[Site "https://www.chess.com"]